[Event "Nové Hrady - Blesk"]
[Site "Nové Hrady, Czech Republic"]
[Date "2023.08.17"]
[Round "11.2"]
[White "Zeman, Matyas"]
[Black "Papacek, Stepan"]
[Result "1/2-1/2"]
[TimeControl "2x3+2s"]
[WhiteFideId "364398"]
[BlackFideId "301035"]
[WhiteElo "2254"]
[BlackElo "2137"]

1. e4 {[%clk 00:03:02]} {[%emt 00:00:02]} e6 {[%emt 00:00:01]} 2. d4 d5 {[%clk
00:03:03]} {[%emt 00:00:01]} 3. Nc3 {[%clk 00:03:04]} Bb4 {[%clk 00:03:04]}
{[%emt 00:00:03]} 4. exd5 {[%clk 00:03:02]} {[%emt 00:00:03]} exd5 {[%clk
00:03:04]} {[%emt 00:00:02]} 5. Bd3 {[%clk 00:03:03]} Nf6 {[%clk 00:02:46]}
{[%emt 00:00:21]} 6. Nge2 {[%clk 00:03:03]} {[%emt 00:00:02]} O-O {[%clk
00:02:40]} {[%emt 00:00:08]} 7. O-O {[%clk 00:03:03]} {[%emt 00:00:02]} Re8
{[%clk 00:02:23]} {[%emt 00:00:19]} 8. Ng3 {[%clk 00:02:59]} {[%emt 00:00:06]}
Bg4 {[%clk 00:02:18]} {[%emt 00:00:08]} 9. f3 {[%clk 00:02:58]} {[%emt
00:00:03]} Be6 {[%clk 00:02:10]} {[%emt 00:00:10]} 10. Nce2 {[%clk 00:02:58]}
{[%emt 00:00:02]} Be7 {[%clk 00:01:41]} {[%emt 00:00:31]} 11. Nf4 {[%clk
00:02:57]} {[%emt 00:00:02]} Bc8 {[%clk 00:01:34]} {[%emt 00:00:10]} 12. c3
{[%clk 00:02:56]} {[%emt 00:00:03]} Nbd7 {[%clk 00:01:31]} {[%emt 00:00:04]} 13.
Qc2 {[%clk 00:02:50]} {[%emt 00:00:09]} Nf8 {[%clk 00:01:31]} {[%emt 00:00:02]}
14. Bd2 {[%clk 00:02:49]} {[%emt 00:00:02]} Bd6 {[%clk 00:01:22]} {[%emt
00:00:12]} 15. Nf5 {[%clk 00:02:24]} {[%emt 00:00:27]} Bxf5 {[%clk 00:01:16]}
{[%emt 00:00:07]} 16. Bxf5 {[%clk 00:02:24]} g6 {[%clk 00:01:07]} {[%emt
00:00:13]} 17. Bd3 {[%clk 00:02:11]} {[%emt 00:00:15]} c6 {[%clk 00:01:08]} 18.
Rae1 {[%clk 00:02:12]} {[%emt 00:00:02]} Qc7 {[%clk 00:01:09]} 19. g3 {[%clk
00:02:06]} {[%emt 00:00:08]} Rxe1 {[%clk 00:01:01]} {[%emt 00:00:10]} 20. Rxe1
{[%clk 00:02:08]} Re8 {[%clk 00:01:02]} 21. Qd1 {[%clk 00:02:00]} {[%emt
00:00:12]} Rxe1+ {[%clk 00:01:01]} {[%emt 00:00:02]} 22. Qxe1 {[%clk 00:02:02]}
Qe7 {[%clk 00:01:01]} {[%emt 00:00:03]} 23. Qxe7 {[%emt 00:00:09]} Bxe7 24. h4
{[%clk 00:01:55]} h5 {[%clk 00:01:00]} {[%emt 00:00:05]} 25. Kf2 {[%clk
00:01:56]} {[%emt 00:00:02]} Bd6 {[%clk 00:00:58]} {[%emt 00:00:04]} 26. a4
{[%clk 00:01:55]} {[%emt 00:00:02]} N8d7 {[%clk 00:00:53]} {[%emt 00:00:07]} 27.
a5 {[%clk 00:01:51]} {[%emt 00:00:06]} a6 {[%clk 00:00:53]} {[%emt 00:00:02]}
28. b4 {[%clk 00:01:52]} Kf8 {[%clk 00:00:53]} {[%emt 00:00:03]} 29. Be2 {[%clk
00:01:52]} {[%emt 00:00:02]} Ke7 {[%clk 00:00:54]} 30. Nd3 {[%clk 00:01:53]}
Ne8 {[%clk 00:00:40]} {[%emt 00:00:18]} 31. Bg5+ {[%clk 00:01:50]} {[%emt
00:00:05]} f6 {[%clk 00:00:41]} 32. Bf4 {[%clk 00:01:51]} Ng7 {[%clk 00:00:35]}
{[%emt 00:00:08]} 33. Bxd6+ {[%clk 00:01:42]} {[%emt 00:00:12]} Kxd6 {[%clk
00:00:36]} {[%emt 00:00:02]} 34. Nf4 {[%clk 00:01:39]} {[%emt 00:00:04]} Nf8
{[%clk 00:00:36]} {[%emt 00:00:02]} 35. Bd3 {[%clk 00:01:39]} {[%emt 00:00:02]}
f5 {[%clk 00:00:36]} {[%emt 00:00:02]} 36. Nh3 {[%clk 00:01:33]} {[%emt
00:00:08]} Nge6 {[%clk 00:00:36]} {[%emt 00:00:02]} 37. Ke3 {[%clk 00:01:26]}
{[%emt 00:00:10]} Ke7 {[%clk 00:00:34]} {[%emt 00:00:03]} 38. Bc2 {[%clk
00:01:16]} {[%emt 00:00:12]} Kf6 {[%clk 00:00:34]} {[%emt 00:00:02]} 39. Nf2
{[%clk 00:01:17]} {[%emt 00:00:02]} Nd7 {[%clk 00:00:19]} {[%emt 00:00:16]} 40.
Nd3 {[%clk 00:01:18]} Nc7 {[%clk 00:00:17]} {[%emt 00:00:06]} 41. Bd1 {[%emt
00:00:19]} Nb5 {[%emt 00:00:01]} 42. Kd2 {[%clk 00:01:00]} Nd6 {[%clk
00:00:20]} 43. Bb3 {[%clk 00:00:49]} {[%emt 00:00:15]} Nc4+ {[%clk 00:00:14]}
{[%emt 00:00:08]} 44. Bxc4 {[%clk 00:00:48]} {[%emt 00:00:03]} dxc4 {[%clk
00:00:15]} 45. Nb2 {[%clk 00:00:49]} b5 {[%clk 00:00:16]} 46. axb6 {[%clk
00:00:47]} {[%emt 00:00:07]} Nxb6 {[%clk 00:00:17]} 47. Nd1 {[%clk 00:00:45]}
{[%emt 00:00:05]} Nd5 {[%clk 00:00:15]} {[%emt 00:00:04]} 48. Ne3 {[%clk
00:00:44]} {[%emt 00:00:02]} Nxe3 {[%emt 00:00:04]} 49. Kxe3 {[%clk 00:00:44]}
g5 {[%clk 00:00:11]} {[%emt 00:00:05]} 50. f4 {[%clk 00:00:07]} {[%emt
00:00:39]} gxh4 {[%clk 00:00:12]} 51. gxh4 {[%clk 00:00:09]} Ke6 {[%clk
00:00:13]} 52. Kf3 {[%clk 00:00:08]} {[%emt 00:00:05]} Ke5 {[%emt 00:00:37]} 53.
Ke4+ Ke6+ {[%clk 00:00:11]} {[%emt 00:00:01]} 1/2-1/2

[Event "Nové Hrady - Blesk"]
[Site "Nové Hrady, Czech Republic"]
[Date "2023.08.17"]
[Round "11.3"]
[White "Blazek, Jiri"]
[Black "Hak, David"]
[Result "0-1"]
[TimeControl "2x3+2s"]
[WhiteFideId "330515"]
[BlackFideId "377007"]
[WhiteElo "2061"]
[BlackElo "2037"]

1. d4 {[%emt 00:00:02]} Nf6 2. e3 {[%clk 00:03:03]} {[%emt 00:00:01]} g6 {[%clk
00:03:04]} 3. Bd3 {[%clk 00:03:02]} {[%emt 00:00:03]} Bg7 {[%clk 00:03:05]}
{[%emt 00:00:01]} 4. Ne2 {[%clk 00:03:00]} {[%emt 00:00:04]} O-O {[%clk
00:03:04]} {[%emt 00:00:02]} 5. O-O {[%clk 00:03:01]} {[%emt 00:00:02]} d6
{[%clk 00:03:06]} 6. e4 {[%clk 00:02:59]} {[%emt 00:00:04]} e5 {[%clk
00:03:05]} {[%emt 00:00:02]} 7. c3 {[%clk 00:03:00]} {[%emt 00:00:02]} Nc6
{[%clk 00:02:46]} {[%emt 00:00:22]} 8. d5 {[%clk 00:02:52]} {[%emt 00:00:10]}
Ne7 {[%clk 00:02:46]} 9. f4 {[%clk 00:02:48]} {[%emt 00:00:06]} Nd7 {[%clk
00:02:14]} {[%emt 00:00:34]} 10. f5 {[%clk 00:02:33]} {[%emt 00:00:17]} gxf5
{[%clk 00:02:14]} {[%emt 00:00:02]} 11. exf5 {[%clk 00:02:33]} {[%emt
00:00:02]} Nxd5 {[%clk 00:02:09]} {[%emt 00:00:07]} 12. Ng3 {[%clk 00:02:27]}
{[%emt 00:00:08]} Qh4 {[%clk 00:01:56]} {[%emt 00:00:15]} 13. Qf3 {[%clk
00:01:43]} {[%emt 00:00:45]} N5f6 {[%clk 00:01:29]} {[%emt 00:00:29]} 14. Ne4
{[%clk 00:01:28]} {[%emt 00:00:18]} Nxe4 {[%clk 00:01:26]} {[%emt 00:00:05]} 15.
Bxe4 {[%clk 00:01:29]} Nc5 {[%clk 00:01:21]} {[%emt 00:00:08]} 16. Bc2 {[%clk
00:01:20]} {[%emt 00:00:11]} e4 {[%clk 00:01:21]} {[%emt 00:00:01]} 17. Qe2
{[%clk 00:01:10]} {[%emt 00:00:11]} Re8 {[%clk 00:01:11]} {[%emt 00:00:13]} 18.
Be3 {[%clk 00:01:03]} {[%emt 00:00:09]} b6 {[%clk 00:00:57]} {[%emt 00:00:16]}
19. g3 {[%clk 00:01:03]} {[%emt 00:00:02]} Qe7 {[%clk 00:00:56]} {[%emt
00:00:04]} 20. Bd4 {[%clk 00:00:59]} {[%emt 00:00:05]} Ba6 {[%clk 00:00:39]}
{[%emt 00:00:19]} 21. Qg4 {[%emt 00:00:05]} f6 {[%emt 00:00:01]} 22. Re1 {[%clk
00:00:53]} {[%emt 00:00:05]} Kh8 {[%clk 00:00:36]} {[%emt 00:00:07]} 23. Nd2
{[%clk 00:00:50]} {[%emt 00:00:05]} Bb7 {[%clk 00:00:33]} {[%emt 00:00:04]} 24.
Nf1 {[%clk 00:00:50]} {[%emt 00:00:02]} Qf7 {[%clk 00:00:31]} {[%emt 00:00:04]}
25. Ne3 {[%clk 00:00:50]} {[%emt 00:00:02]} Nd3 {[%clk 00:00:31]} {[%emt
00:00:03]} 26. Rf1 {[%clk 00:00:48]} {[%emt 00:00:03]} c5 {[%clk 00:00:30]}
{[%emt 00:00:03]} 27. Bb3 {[%emt 00:00:06]} Qf8 {[%clk 00:00:27]} {[%emt
00:00:03]} 28. Qh5 {[%clk 00:00:27]} {[%emt 00:00:21]} cxd4 {[%clk 00:00:27]}
{[%emt 00:00:02]} 29. Ng4 {[%clk 00:00:28]} e3 {[%clk 00:00:19]} {[%emt
00:00:12]} 30. Bf7 {[%clk 00:00:24]} {[%emt 00:00:04]} e2 {[%clk 00:00:13]}
{[%emt 00:00:09]} 31. Bg6 {[%emt 00:00:08]} exf1=Q+ 32. Rxf1 Qg8 {[%clk
00:00:10]} {[%emt 00:00:04]} 33. Rd1 {[%clk 00:00:15]} {[%emt 00:00:05]} Ne5
{[%clk 00:00:10]} {[%emt 00:00:02]} 34. Rxd4 {[%clk 00:00:15]} {[%emt
00:00:02]} Nxg6 {[%clk 00:00:09]} {[%emt 00:00:03]} 35. fxg6 {[%clk 00:00:16]}
Re1+ {[%clk 00:00:10]} {[%emt 00:00:03]} 36. Kf2 {[%clk 00:00:17]} Rae8 {[%clk
00:00:11]} 37. Rd2 {[%clk 00:00:09]} {[%emt 00:00:11]} Ba6 {[%clk 00:00:08]}
{[%emt 00:00:05]} 38. h4 {[%clk 00:00:06]} {[%emt 00:00:04]} R8e2+ {[%clk
00:00:10]} 39. Rxe2 Rxe2+ {[%emt 00:00:03]} 40. Kf3 {[%clk 00:00:07]} {[%emt
00:00:02]} Re7 {[%clk 00:00:07]} {[%emt 00:00:05]} 41. Ne3 {[%clk 00:00:07]}
{[%emt 00:00:03]} Bb7+ {[%clk 00:00:09]} 42. Kf2 {[%clk 00:00:08]} Rxe3 {[%clk
00:00:09]} {[%emt 00:00:03]} 43. Kxe3 {[%clk 00:00:09]} Qe8+ {[%clk 00:00:10]}
44. Kf2 {[%clk 00:00:10]} Qxg6 {[%clk 00:00:11]} {[%emt 00:00:04]} 0-1

[Event "Nové Hrady - Blesk"]
[Site "Nové Hrady, Czech Republic"]
[Date "2023.08.17"]
[Round "11.4"]
[White "Šimůnek, Jakub Šimon"]
[Black "Valenz, Miroslav"]
[Result "0-1"]
[TimeControl "2x3+2s"]
[WhiteFideId "23709464"]
[BlackFideId "326283"]
[WhiteElo "1921"]
[BlackElo "1929"]

1. e4 {[%clk 00:03:03]} c5 {[%clk 00:03:04]} 2. Nf3 {[%clk 00:03:04]} Nc6
{[%clk 00:03:05]} 3. Bb5 {[%clk 00:03:05]} g6 {[%clk 00:03:03]} {[%emt
00:00:08]} 4. O-O {[%clk 00:03:05]} Bg7 {[%clk 00:03:04]} 5. Re1 {[%clk
00:03:07]} Nf6 {[%clk 00:03:01]} {[%emt 00:00:06]} 6. Bxc6 {[%clk 00:03:06]}
{[%emt 00:00:03]} dxc6 {[%clk 00:03:01]} {[%emt 00:00:01]} 7. d3 {[%clk
00:03:07]} O-O {[%clk 00:03:02]} {[%emt 00:00:03]} 8. c3 {[%clk 00:03:03]}
{[%emt 00:00:06]} b6 {[%clk 00:03:03]} 9. d4 {[%clk 00:03:00]} {[%emt
00:00:05]} cxd4 {[%clk 00:03:04]} 10. cxd4 {[%clk 00:03:02]} Bb7 {[%clk
00:03:01]} {[%emt 00:00:07]} 11. Nc3 {[%clk 00:03:01]} {[%emt 00:00:03]} Rc8
{[%clk 00:02:56]} {[%emt 00:00:06]} 12. Qe2 {[%clk 00:02:46]} {[%emt 00:00:18]}
c5 {[%clk 00:02:54]} {[%emt 00:00:03]} 13. Rd1 {[%clk 00:02:40]} {[%emt
00:00:08]} Qc7 {[%clk 00:02:35]} {[%emt 00:00:21]} 14. e5 {[%clk 00:02:39]}
{[%emt 00:00:03]} Nd7 {[%clk 00:02:33]} {[%emt 00:00:04]} 15. Bf4 {[%clk
00:01:44]} {[%emt 00:00:57]} cxd4 {[%clk 00:02:18]} {[%emt 00:00:17]} 16. Nb5
{[%clk 00:01:45]} Qc2 {[%clk 00:02:04]} {[%emt 00:00:18]} 17. Qxc2 Rxc2 {[%clk
00:02:04]} 18. Nbxd4 {[%clk 00:01:04]} {[%emt 00:00:02]} Rxb2 {[%clk 00:02:01]}
{[%emt 00:00:05]} 19. Ne6 {[%clk 00:01:05]} {[%emt 00:00:02]} fxe6 {[%clk
00:01:46]} {[%emt 00:00:16]} 20. Rxd7 {[%clk 00:01:04]} {[%emt 00:00:02]} Bxf3
{[%clk 00:01:47]} 21. Bc1 {[%clk 00:00:56]} {[%emt 00:00:11]} Re2 {[%clk
00:01:29]} {[%emt 00:00:21]} 22. gxf3 {[%clk 00:00:54]} {[%emt 00:00:04]} Bxe5
{[%clk 00:01:30]} 23. Rb1 {[%clk 00:00:50]} {[%emt 00:00:08]} Rxf3 {[%clk
00:01:20]} {[%emt 00:00:11]} 24. Bh6 {[%clk 00:00:36]} {[%emt 00:00:17]} Bg7
{[%clk 00:01:03]} {[%emt 00:00:19]} 25. Be3 {[%clk 00:00:31]} {[%emt 00:00:07]}
Rxa2 {[%clk 00:00:57]} {[%emt 00:00:07]} 26. Rc1 {[%clk 00:00:18]} {[%emt
00:00:15]} Bf6 {[%clk 00:00:54]} {[%emt 00:00:06]} 27. Bh6 {[%clk 00:00:12]}
{[%emt 00:00:08]} Kf7 {[%clk 00:00:48]} {[%emt 00:00:08]} 28. Rc8 {[%clk
00:00:09]} {[%emt 00:00:05]} e5 {[%clk 00:00:46]} {[%emt 00:00:03]} 29. Rc6
{[%clk 00:00:06]} {[%emt 00:00:06]} Rfxf2 {[%clk 00:00:39]} {[%emt 00:00:08]}
30. Rd8 {[%clk 00:00:07]} {[%emt 00:00:02]} Rg2+ {[%clk 00:00:35]} {[%emt
00:00:05]} 31. Kh1 {[%clk 00:00:06]} {[%emt 00:00:03]} Rxh2+ {[%emt 00:00:01]}
32. Kg1 Rxh6 {[%clk 00:00:30]} {[%emt 00:00:07]} 33. Rc7 {[%clk 00:00:06]}
{[%emt 00:00:04]} Rh3 {[%clk 00:00:27]} {[%emt 00:00:05]} 34. Rcc8 {[%clk
00:00:07]} {[%emt 00:00:01]} Rb3 {[%clk 00:00:28]} {[%emt 00:00:02]} 35. Rf8+
{[%clk 00:00:07]} {[%emt 00:00:02]} Ke6 {[%clk 00:00:28]} 36. Rc6+ {[%clk
00:00:06]} {[%emt 00:00:03]} Kf5 {[%clk 00:00:29]} 37. Rc1 {[%clk 00:00:07]}
Rbb2 {[%clk 00:00:27]} {[%emt 00:00:06]} 38. Rf1+ {[%clk 00:00:08]} {[%emt
00:00:02]} Ke4 {[%clk 00:00:28]} 39. Re1+ {[%clk 00:00:09]} Kf3 {[%clk
00:00:28]} {[%emt 00:00:03]} 40. Rd8 {[%clk 00:00:08]} {[%emt 00:00:03]} Rg2+
{[%clk 00:00:27]} {[%emt 00:00:02]} 41. Kh1 {[%clk 00:00:08]} Rgd2 {[%clk
00:00:24]} {[%emt 00:00:06]} 42. Rc8 {[%clk 00:00:09]} {[%emt 00:00:02]} h5
{[%clk 00:00:18]} {[%emt 00:00:09]} 43. Rc3+ {[%clk 00:00:10]} Kg4 {[%clk
00:00:18]} {[%emt 00:00:02]} 44. Rg1+ {[%clk 00:00:08]} {[%emt 00:00:02]} Kf5
{[%clk 00:00:18]} {[%emt 00:00:03]} 45. Rf1+ {[%clk 00:00:10]} Ke6 {[%clk
00:00:19]} 46. Rfc1 {[%clk 00:00:08]} {[%emt 00:00:04]} Kf7 {[%clk 00:00:18]}
{[%emt 00:00:04]} 47. Rc8 {[%emt 00:00:03]} a5 {[%emt 00:00:01]} 48. Rb8 {[%clk
00:00:08]} Rab2 {[%clk 00:00:20]} {[%emt 00:00:02]} 49. Rbc8 {[%clk 00:00:07]}
{[%emt 00:00:02]} a4 {[%clk 00:00:21]} 50. Ra8 {[%clk 00:00:08]} b5 {[%clk
00:00:21]} {[%emt 00:00:03]} 51. Ra5 {[%clk 00:00:06]} {[%emt 00:00:04]} Rd3
{[%clk 00:00:19]} {[%emt 00:00:03]} 52. Rf1 {[%clk 00:00:03]} {[%emt 00:00:05]}
a3 {[%clk 00:00:20]} 53. Ra1 {[%clk 00:00:04]} {[%emt 00:00:03]} a2 {[%clk
00:00:21]} 54. R5xa2 {[%emt 00:00:02]} Rxa2 55. Rxa2 {[%clk 00:00:04]} {[%emt
00:00:01]} b4 {[%clk 00:00:23]} 56. Rb2 {[%clk 00:00:07]} b3 {[%clk 00:00:24]}
57. Kg1 {[%clk 00:00:08]} e4 58. Rb1 {[%emt 00:00:04]} b2 {[%clk 00:00:27]} 59.
Kf1 Ra3 {[%emt 00:00:01]} 60. Ke2 {[%clk 00:00:11]} Ra1 {[%clk 00:00:29]} 61.
Ke3 {[%clk 00:00:11]} {[%emt 00:00:03]} Rxb1 {[%emt 00:00:01]} 62. Kxe4 Rc1
{[%clk 00:00:30]} {[%emt 00:00:01]} 63. Ke3 {[%clk 00:00:13]} {[%emt 00:00:02]}
b1=Q {[%clk 00:00:31]} 64. Kf3 {[%clk 00:00:13]} {[%emt 00:00:03]} Qd3+ {[%emt
00:00:04]} 65. Kg2 {[%clk 00:00:11]} Rc2+ {[%clk 00:00:31]} {[%emt 00:00:03]}
66. Kf1 {[%clk 00:00:12]} {[%emt 00:00:03]} Qd1# 67. Ke1 {[%emt 00:00:07]} 0-1

[Event "Nové Hrady - Blesk"]
[Site "Nové Hrady, Czech Republic"]
[Date "2023.08.17"]
[Round "11.5"]
[White "Vybiral, Zdenek"]
[Black "Richtrova, Eliska"]
[Result "0-1"]
[TimeControl "2x3+2s"]
[WhiteFideId "305200"]
[BlackFideId "300683"]
[WhiteElo "2158"]
[BlackElo "2122"]

1. d4 {[%clk 00:03:03]} {[%emt 00:02:59]} Nf6 {[%clk 00:03:03]} {[%emt
00:00:02]} 2. c4 {[%clk 00:03:04]} e6 {[%clk 00:03:04]} 3. Nc3 {[%clk
00:03:04]} {[%emt 00:00:03]} b6 {[%clk 00:03:06]} 4. e4 {[%clk 00:03:00]}
{[%emt 00:00:07]} Bb4 {[%clk 00:03:06]} 5. Bd3 {[%clk 00:03:00]} {[%emt
00:00:02]} Bb7 {[%clk 00:03:08]} 6. Qe2 {[%clk 00:02:58]} {[%emt 00:00:06]} c5
{[%clk 00:03:04]} {[%emt 00:00:06]} 7. d5 {[%clk 00:02:58]} {[%emt 00:00:02]}
O-O {[%clk 00:03:03]} {[%emt 00:00:02]} 8. e5 {[%clk 00:02:30]} {[%emt
00:00:29]} exd5 {[%clk 00:03:03]} {[%emt 00:00:03]} 9. exf6 {[%clk 00:02:31]}
d4 {[%clk 00:03:04]} 10. Qh5 {[%clk 00:02:20]} {[%emt 00:00:15]} g6 {[%clk
00:02:55]} {[%emt 00:00:10]} 11. Qh4 {[%clk 00:02:21]} {[%emt 00:00:02]} Re8+
{[%clk 00:02:51]} {[%emt 00:00:06]} 12. Kf1 {[%clk 00:02:22]} dxc3 {[%clk
00:02:48]} {[%emt 00:00:06]} 13. Ne2 {[%clk 00:01:47]} {[%emt 00:00:37]} d5
{[%clk 00:02:38]} {[%emt 00:00:12]} 14. bxc3 {[%clk 00:01:45]} {[%emt
00:00:04]} dxc4 {[%clk 00:02:26]} {[%emt 00:00:13]} 15. Bg5 {[%clk 00:01:27]}
{[%emt 00:00:21]} cxd3 {[%clk 00:01:59]} {[%emt 00:00:29]} 16. cxb4 {[%clk
00:01:28]} dxe2+ {[%clk 00:01:54]} {[%emt 00:00:08]} 17. Ke1 {[%clk 00:01:28]}
{[%emt 00:00:02]} h5 {[%clk 00:01:40]} {[%emt 00:00:16]} 18. bxc5 {[%emt
00:00:48]} Nc6 {[%clk 00:01:36]} {[%emt 00:00:05]} 19. Be3 {[%clk 00:00:40]}
{[%emt 00:00:05]} Ne5 {[%clk 00:01:24]} {[%emt 00:00:15]} 20. h3 {[%clk
00:00:23]} {[%emt 00:00:18]} bxc5 {[%clk 00:01:14]} {[%emt 00:00:12]} 21. Kxe2
{[%clk 00:00:18]} {[%emt 00:00:07]} Ba6+ {[%clk 00:01:14]} 22. Ke1 {[%clk
00:00:18]} {[%emt 00:00:04]} Qd3 {[%clk 00:01:07]} {[%emt 00:00:09]} 23. Qg5
{[%clk 00:00:11]} {[%emt 00:00:09]} Qe2# {[%clk 00:01:07]} {[%emt 00:00:02]}
0-1

[Event "Nové Hrady - Blesk"]
[Site "Nové Hrady, Czech Republic"]
[Date "2023.08.17"]
[Round "11.6"]
[White "Hostička, František"]
[Black "Prinz, Hubert"]
[Result "1-0"]
[TimeControl "2x3+2s"]
[WhiteFideId "302295"]
[BlackFideId "1639447"]
[WhiteElo "2074"]
[BlackElo "1884"]

1. e4 {[%emt 00:04:54]} d5 {[%emt 00:00:01]} 2. Nc3 {[%clk 00:03:04]} d4 {[%emt
00:00:05]} 3. Nce2 c5 {[%clk 00:03:03]} 4. d3 {[%clk 00:03:06]} Nc6 {[%clk
00:03:04]} 5. f4 {[%clk 00:03:07]} e5 {[%clk 00:03:05]} 6. Nf3 {[%clk
00:03:08]} {[%emt 00:00:04]} exf4 {[%clk 00:03:06]} 7. Nxf4 {[%clk 00:03:08]}
{[%emt 00:00:03]} Nf6 {[%clk 00:03:06]} {[%emt 00:00:02]} 8. Be2 {[%clk
00:03:05]} {[%emt 00:00:05]} Bd6 {[%clk 00:03:05]} {[%emt 00:00:03]} 9. O-O
{[%clk 00:03:03]} {[%emt 00:00:03]} O-O {[%clk 00:03:06]} {[%emt 00:00:02]} 10.
a3 {[%clk 00:03:02]} {[%emt 00:00:03]} Ne5 {[%clk 00:03:00]} {[%emt 00:00:09]}
11. Nxe5 {[%clk 00:03:01]} {[%emt 00:00:02]} Bxe5 {[%clk 00:03:01]} 12. Qe1
{[%clk 00:03:02]} {[%emt 00:00:03]} b6 {[%clk 00:02:43]} {[%emt 00:00:20]} 13.
Qh4 {[%clk 00:03:00]} {[%emt 00:00:03]} Nd7 {[%clk 00:02:31]} {[%emt 00:00:14]}
14. Qxd8 {[%clk 00:02:57]} {[%emt 00:00:05]} Rxd8 {[%clk 00:02:32]} 15. Nd5
{[%clk 00:02:52]} {[%emt 00:00:08]} Bb7 {[%clk 00:02:13]} {[%emt 00:00:21]} 16.
Ne7+ {[%clk 00:02:36]} {[%emt 00:00:18]} Kf8 {[%clk 00:02:07]} {[%emt
00:00:07]} 17. Nf5 {[%clk 00:02:32]} {[%emt 00:00:06]} Nf6 {[%clk 00:01:57]}
{[%emt 00:00:12]} 18. Bg5 {[%clk 00:02:25]} {[%emt 00:00:10]} Bc8 {[%clk
00:01:57]} {[%emt 00:00:02]} 19. Rf2 {[%clk 00:02:21]} {[%emt 00:00:06]} h6
{[%clk 00:01:56]} {[%emt 00:00:03]} 20. Nxh6 {[%clk 00:02:16]} {[%emt
00:00:07]} gxh6 {[%clk 00:01:57]} 21. Bxf6 {[%clk 00:02:17]} Re8 {[%clk
00:01:46]} {[%emt 00:00:15]} 22. Raf1 {[%clk 00:02:12]} {[%emt 00:00:08]} Bxf6
{[%clk 00:01:35]} {[%emt 00:00:12]} 23. Rxf6 {[%clk 00:02:13]} Be6 {[%clk
00:01:36]} 24. Bh5 {[%clk 00:01:58]} {[%emt 00:00:19]} Re7 {[%clk 00:01:31]}
{[%emt 00:00:07]} 25. Rxh6 {[%clk 00:01:55]} {[%emt 00:00:04]} Kg7 {[%clk
00:01:32]} {[%emt 00:00:02]} 26. Rhf6 {[%clk 00:01:56]} Rh8 {[%clk 00:01:23]}
{[%emt 00:00:12]} 27. g4 {[%clk 00:01:44]} {[%emt 00:00:14]} Rh6 {[%clk
00:01:17]} {[%emt 00:00:08]} 28. Rxh6 {[%clk 00:01:42]} {[%emt 00:00:03]} Kxh6
{[%clk 00:01:19]} 29. h4 {[%clk 00:01:41]} {[%emt 00:00:04]} Kg7 {[%clk
00:01:12]} {[%emt 00:00:09]} 30. b3 {[%emt 00:00:06]} b5 {[%emt 00:00:01]} 31.
g5 {[%clk 00:01:31]} {[%emt 00:00:08]} c4 {[%clk 00:01:14]} {[%emt 00:00:02]}
32. bxc4 {[%clk 00:01:29]} {[%emt 00:00:03]} bxc4 {[%clk 00:01:15]} 33. dxc4
{[%clk 00:01:18]} {[%emt 00:00:14]} Bxc4 {[%clk 00:01:16]} {[%emt 00:00:01]} 34.
Rf4 {[%clk 00:01:08]} {[%emt 00:00:12]} d3 {[%clk 00:01:13]} {[%emt 00:00:05]}
35. cxd3 {[%clk 00:01:08]} {[%emt 00:00:03]} Bxd3 {[%clk 00:01:14]} 36. Bf3
{[%clk 00:01:09]} a6 {[%clk 00:01:05]} {[%emt 00:00:11]} 37. Kf2 {[%clk
00:01:10]} a5 {[%clk 00:01:02]} {[%emt 00:00:08]} 38. Ke3 {[%clk 00:01:11]} Bb1
{[%clk 00:01:01]} 39. Rf5 {[%clk 00:01:10]} {[%emt 00:00:06]} a4 {[%clk
00:01:02]} 40. Ra5 {[%clk 00:01:08]} {[%emt 00:00:05]} Bc2 {[%clk 00:01:03]} 41.
e5 {[%clk 00:01:05]} {[%emt 00:00:07]} Bb3 {[%clk 00:01:02]} {[%emt 00:00:03]}
42. h5 {[%clk 00:00:59]} {[%emt 00:00:07]} Rc7 {[%clk 00:01:03]} 43. Be4 {[%clk
00:00:55]} {[%emt 00:00:07]} Rc3+ {[%clk 00:01:03]} 44. Kf4 {[%clk 00:00:56]}
Rc4 {[%clk 00:01:02]} {[%emt 00:00:04]} 45. h6+ {[%clk 00:00:57]} Kf8 {[%clk
00:00:58]} {[%emt 00:00:08]} 46. Ra8+ {[%clk 00:00:58]} Ke7 {[%clk 00:01:00]}
47. h7 {[%emt 00:00:04]} Bc2 48. Ra7+ {[%clk 00:00:52]} {[%emt 00:00:08]} Ke6
{[%clk 00:00:58]} {[%emt 00:00:04]} 49. h8=Q {[%clk 00:00:48]} {[%emt
00:00:06]} Rxe4+ {[%clk 00:00:56]} {[%emt 00:00:04]} 50. Kf3 {[%clk 00:00:49]}
Rxe5 {[%clk 00:00:54]} {[%emt 00:00:04]} 51. Qf6+ {[%clk 00:00:49]} {[%emt
00:00:03]} Kd5 {[%clk 00:00:55]} 52. Rd7+ {[%clk 00:00:49]} {[%emt 00:00:02]}
Kc4 {[%clk 00:00:56]} 53. Qxe5 {[%clk 00:00:49]} {[%emt 00:00:03]} f6 {[%clk
00:00:57]} 54. gxf6 {[%clk 00:00:50]} Kb3 {[%clk 00:00:44]} {[%emt 00:00:18]}
55. Qe3+ {[%clk 00:00:49]} {[%emt 00:00:02]} Kb2 {[%clk 00:00:44]} {[%emt
00:00:02]} 56. Rb7+ {[%clk 00:00:50]} Ka1 {[%clk 00:00:41]} {[%emt 00:00:05]}
57. Qc1+ {[%clk 00:00:51]} Ka2 {[%clk 00:00:41]} {[%emt 00:00:04]} 58. Qb2#
{[%clk 00:00:51]} {[%emt 00:00:02]} 1-0